bitfinex/quotes_BTCUSD_20251212
["timestamp","ask_amount","ask_price","bid_price","bid_amount"]
[1765557546336,0.01114504,89726.0,89721.0,0.01114566]
[1765557546579,0.01114454,89730.0,89723.0,0.01114541]
[1765557546783,0.01114454,89730.0,89721.0,0.23405727]
[1765557546784,0.04478043,89735.0,89729.0,0.01114466]
[1765557546995,0.0119322,89740.0,89734.0,0.2228806]
[1765557546996,0.0007889,89740.0,89734.0,0.2228806]
[1765557547263,0.0007889,89740.0,89735.0,0.23402134]
[1765557547264,0.001,89737.0,89735.0,0.23402134]
[1765557547468,0.0007889,89740.0,89739.0,0.22286854]
[1765557547679,0.0007889,89740.0,89739.0,0.28615854]
[1765557547891,0.0007889,89740.0,89733.0,0.01114417]
[1765557547892,0.22288527,89733.0,89723.0,0.23405209]
[1765557548115,0.01114504,89726.0,89720.0,0.02910578]
[1765557548375,0.01114591,89719.0,89706.0,0.01796]
[1765557548623,0.01114553,89722.0,89712.0,0.22293395]
[1765557548864,0.01114628,89716.0,89711.0,0.0111469]
[1765557549110,0.0111464,89715.0,89711.0,0.0111469]
[1765557549311,0.01114615,89717.0,89713.0,0.01114665]
[1765557549524,0.04317043,89719.0,89715.0,0.0111464]
[1765557549911,0.01114591,89719.0,89716.0,0.01114628]
[1765557550113,0.01114591,89719.0,89714.0,0.01114653]
[1765557550321,0.22293717,89712.0,89706.0,0.01114752]
[1765557550648,0.05431783,89707.0,89700.0,0.01114827]
[1765557550797,0.01114839,89699.0,89694.0,0.01114901]
[1765557551119,0.04317043,89698.0,89693.0,0.01114914]
[1765557551294,0.01114827,89700.0,89695.0,0.23412427]
[1765557551493,0.04317043,89701.0,89697.0,0.23412153]
[1765557551697,0.44572691,89742.0,89691.0,0.01114939]
[1765557551698,0.01114889,89695.0,89691.0,0.01114939]
[1765557551897,0.01153755,89695.0,89688.0,0.01114976]
[1765557552152,0.01153755,89695.0,89676.0,0.22302484]
[1765557552153,0.01115038,89683.0,89676.0,0.22302484]
[1765557552282,0.04317043,89689.0,89681.0,0.01115063]
[1765557552484,0.04317043,89689.0,89676.0,0.01668]
[1765557552485,0.01114914,89693.0,89686.0,0.01115001]
[1765557552684,0.01153755,89695.0,89692.0,0.01114926]
[1765557552908,0.00038866,89695.0,89693.0,0.22298284]
[1765557553243,0.00038866,89695.0,89692.0,0.23413379]
[1765557553437,0.00038866,89695.0,89693.0,0.001]
[1765557553658,0.04317043,89691.0,89687.0,0.22299585]
[1765557553885,0.04317043,89691.0,89687.0,0.01114988]
[1765557554048,0.04317043,89691.0,89688.0,0.01114976]
[1765557554226,0.00038866,89695.0,89692.0,0.01114926]
[1765557554430,0.00038866,89695.0,89694.0,0.22298035]
[1765557554660,0.00038866,89695.0,89694.0,0.26487035]
[1765557555695,0.00038866,89695.0,89694.0,0.26587035]
[1765557556253,0.00038866,89695.0,89694.0,0.001]
[1765557556656,0.00038866,89695.0,89694.0,0.002]
[1765557557075,0.00038866,89695.0,89694.0,0.06518803]
[1765557557291,0.00038866,89695.0,89694.0,0.14485893]
[1765557557496,0.00038866,89695.0,89694.0,0.06418803]
[1765557557699,0.00038866,89695.0,89694.0,0.06618803]
[1765557557901,0.00038866,89695.0,89694.0,0.02529803]
[1765557558123,0.00038866,89695.0,89694.0,0.02429803]
[1765557558511,0.00038866,89695.0,89694.0,0.06764803]
[1765557558660,0.00038866,89695.0,89694.0,0.19307173]
[1765557558854,0.00038866,89695.0,89694.0,0.14988373]
[1765557559479,0.00038866,89695.0,89694.0,0.20190212]
[1765557559874,0.00038866,89695.0,89694.0,0.06764803]
[1765557560299,0.00038866,89695.0,89694.0,0.09934803]
[1765557560432,0.00038866,89695.0,89694.0,0.14936642]
[1765557560636,0.00038866,89695.0,89694.0,0.19055442]
[1765557561044,0.00038866,89695.0,89694.0,0.19255442]
[1765557561247,0.00038866,89695.0,89694.0,0.09934803]
[1765557561679,0.00038866,89695.0,89694.0,0.004]
[1765557561848,0.00199866,89695.0,89694.0,0.004]
[1765557562054,1.11601909,89695.0,89694.0,0.004]
[1765557562279,1.11601909,89695.0,89694.0,0.002]
[1765557562530,1.22652671,89695.0,89694.0,0.002]
[1765557562704,1.22652671,89695.0,89694.0,0.004]
[1765557562982,1.22652671,89695.0,89694.0,0.002]
[1765557562983,1.11601909,89695.0,89694.0,0.002]
[1765557563179,0.05432019,89688.0,89683.0,0.01115038]
[1765557563413,1.0,89694.0,89692.0,0.01114926]
[1765557563569,0.08599755,89695.0,89694.0,0.002]
[1765557563570,0.00038866,89695.0,89694.0,0.002]
[1765557563774,0.00038866,89695.0,89694.0,0.02418269]
[1765557563978,0.00238866,89695.0,89694.0,0.14371871]
[1765557564340,0.00038866,89695.0,89694.0,0.08426672]
[1765557564965,0.00038866,89695.0,89694.0,0.09335803]
[1765557565151,0.00038866,89695.0,89694.0,0.09435803]
[1765557566008,0.00038866,89695.0,89694.0,0.07206]
[1765557566156,0.00038866,89695.0,89694.0,0.07306]
[1765557566837,0.00038866,89695.0,89694.0,0.002]
[1765557566996,0.04355909,89695.0,89694.0,0.002]
[1765557567355,0.00038866,89695.0,89694.0,0.002]
[1765557567567,0.12591342,89695.0,89694.0,0.001]
[1765557567770,0.03044866,89695.0,89694.0,0.001]
[1765557567981,0.00199866,89695.0,89694.0,0.001]
[1765557568432,0.00199866,89695.0,89693.0,0.22298264]
[1765557568688,0.00038866,89695.0,89693.0,0.22298264]
[1765557568894,0.00038866,89695.0,89694.0,0.07106]
[1765557569100,0.00038866,89695.0,89694.0,0.17181966]
[1765557569519,0.00038866,89695.0,89692.0,0.01114926]
[1765557569721,0.01114914,89693.0,89668.0,0.04136]
[1765557569974,0.04516909,89695.0,89692.0,0.01114926]
[1765557570187,0.00199866,89695.0,89690.0,0.01114951]
[1765557570566,0.01114988,89687.0,89682.0,0.0111505]
[1765557570866,0.01822,89686.0,89676.0,0.01115125]
[1765557570988,0.04317043,89684.0,89681.0,0.23416095]
[1765557571193,0.01115162,89673.0,89657.0,0.01796]
[1765557571399,0.01115225,89668.0,89662.0,0.01115299]
[1765557571597,0.01115225,89668.0,89663.0,0.01115287]
[1765557571891,0.01115125,89676.0,89670.0,0.011152]
[1765557572114,0.22302234,89678.0,89667.0,0.01115237]
[1765557572115,0.011152,89670.0,89667.0,0.01115237]
[1765557572333,0.01115125,89676.0,89673.0,0.01115162]
[1765557572566,0.01115137,89675.0,89672.0,0.01115175]
[1765557572979,0.23417752,89676.0,89672.0,0.01115175]
[1765557572980,0.01115125,89676.0,89672.0,0.01115175]
[1765557573198,0.26619277,89678.0,89674.0,0.0111515]
[1765557573199,0.011151,89678.0,89674.0,0.0111515]
[1765557573399,0.01115038,89683.0,89669.0,0.22304006]
[1765557573400,0.00161,89686.0,89684.0,0.22300498]
[1765557573953,0.01803,89694.0,89690.0,0.01114951]
[1765557573954,0.23412987,89694.0,89690.0,0.01114951]
[1765557574134,0.01114939,89691.0,89685.0,0.01115013]
[1765557574361,0.04317043,89688.0,89687.0,0.01114988]
[1765557575233,0.01114926,89692.0,89689.0,0.01114963]
[1765557575437,0.01114926,89692.0,89686.0,0.23415007]
[1765557575438,0.002,89688.0,89686.0,0.01115001]
[1765557575712,0.002,89688.0,89685.0,0.01115013]
[1765557575920,0.002,89688.0,89686.0,0.22300024]
[1765557576116,0.002,89688.0,89685.0,0.01115013]
[1765557576270,0.01114951,89690.0,89682.0,0.0111505]
[1765557576271,0.01114963,89689.0,89682.0,0.0111505]
[1765557576477,0.22304347,89669.0,89657.0,0.01115361]
[1765557576729,0.22304347,89669.0,89657.0,0.02212635]
[1765557576897,0.23419448,89670.0,89665.0,0.01115262]
[1765557577097,0.23419448,89670.0,89664.0,0.01115274]
[1765557577253,0.22304501,89668.0,89658.0,0.01115349]
[1765557577480,0.04317043,89668.0,89662.0,0.01115299]
[1765557577681,0.26621544,89668.0,89662.0,0.01115299]
[1765557577888,0.26621544,89668.0,89663.0,0.01115287]
[1765557578137,0.04317043,89668.0,89667.0,0.00111662]
[1765557578346,0.04317043,89668.0,89667.0,0.23431648]
[1765557578518,0.04317043,89668.0,89667.0,0.00011662]
[1765557578731,0.04317043,89668.0,89667.0,0.22416411]
[1765557578938,0.011151,89678.0,89673.0,0.23418185]
[1765557579166,0.135,89677.0,89673.0,0.01115162]
[1765557579400,0.01792,89681.0,89678.0,0.011151]
[1765557579623,0.01114914,89693.0,89687.0,0.23414761]
[1765557579837,0.01114839,89699.0,89696.0,0.01114876]
[1765557580088,0.04317043,89713.0,89706.0,0.01114752]
[1765557580308,0.04317043,89713.0,89710.0,0.01114702]
[1765557580540,0.0111469,89711.0,89707.0,0.0111474]
[1765557580707,0.04317043,89709.0,89708.0,0.01114727]
[1765557580920,0.04317043,89711.0,89708.0,0.01114727]
[1765557581064,0.04355909,89711.0,89708.0,0.01114727]
[1765557581270,0.00038866,89711.0,89708.0,0.01114727]
[1765557581472,0.01114777,89704.0,89699.0,0.01114839]
[1765557581674,0.5734,89701.0,89697.0,0.01114864]
[1765557581873,0.01114827,89700.0,89696.0,0.01114876]
[1765557582083,0.01114963,89689.0,89686.0,0.01115001]
[1765557582282,0.22295499,89705.0,89696.0,0.22297419]
[1765557582483,0.04317043,89697.0,89696.0,0.01114876]
[1765557582684,0.04317043,89703.0,89702.0,0.22295957]
[1765557582953,0.00038866,89711.0,89709.0,0.22294307]
[1765557583549,0.00038866,89711.0,89708.0,0.01114727]
[1765557583550,0.04355909,89711.0,89708.0,0.23409092]
[1765557583771,0.01114752,89706.0,89702.0,0.01114802]
[1765557583969,0.01114789,89703.0,89698.0,0.01114852]
[1765557584113,0.04317043,89702.0,89700.0,0.01114827]
[1765557584322,0.01114889,89695.0,89689.0,0.01114963]
[1765557584523,0.2341398,89690.0,89685.0,0.01115013]
[1765557584757,0.01115001,89686.0,89682.0,0.0111505]
[1765557584955,0.05432019,89688.0,89684.0,0.01115026]
[1765557585229,0.01114988,89687.0,89684.0,0.01115026]
[1765557585419,0.0111505,89682.0,89679.0,0.01115088]
[1765557585595,0.01115038,89683.0,89682.0,0.23416069]
[1765557585596,0.04317043,89683.0,89682.0,0.23416069]
[1765557585793,0.01114926,89692.0,89687.0,0.01114988]
[1765557585996,0.01114963,89689.0,89686.0,0.01115001]
[1765557586313,0.001,89688.0,89686.0,0.01115001]
[1765557586690,0.01214976,89688.0,89684.0,0.002]
[1765557586941,0.01114988,89687.0,89684.0,0.01115026]
[1765557587278,0.01214976,89688.0,89684.0,0.23415521]
[1765557587482,0.001,89688.0,89686.0,0.22300024]
[1765557587683,0.04317043,89686.0,89685.0,0.01115013]
[1765557587888,0.04317043,89686.0,89672.0,0.01115175]
[1765557587889,0.04317043,89674.0,89672.0,0.01115175]
[1765557588095,0.04317043,89674.0,89672.0,0.00011662]
[1765557588293,0.001,89683.0,89672.0,0.00011662]
[1765557588294,0.01115001,89686.0,89680.0,0.01115075]
[1765557588506,0.01785,89709.0,89672.0,0.00011662]
[1765557588507,0.01115125,89676.0,89672.0,0.00011662]
[1765557588702,0.01115113,89677.0,89673.0,0.01115162]
[1765557588926,0.04317043,89675.0,89672.0,0.01126837]
[1765557589144,0.23417932,89675.0,89672.0,0.00011662]
[1765557589350,0.01115137,89675.0,89672.0,0.01126837]
[1765557589590,0.04317043,89677.0,89674.0,0.0111515]
[1765557590203,0.04317043,89677.0,89675.0,0.22302759]
[1765557590332,0.22301516,89680.0,89675.0,0.01115137]
[1765557590529,0.01115088,89679.0,89675.0,0.23417896]
[1765557590767,0.01115088,89679.0,89675.0,0.01115137]
[1765557590971,0.001,89677.0,89674.0,0.0111515]
[1765557591149,0.23417113,89678.0,89674.0,0.0111515]
[1765557591351,0.011151,89678.0,89675.0,0.01115137]
[1765557591555,0.001,89680.0,89676.0,0.01115125]
[1765557591756,0.04317043,89679.0,89678.0,0.22302013]
[1765557591983,0.05432131,89679.0,89676.0,0.01115125]
[1765557592216,0.001,89677.0,89675.0,0.22302759]
[1765557592591,0.05432131,89679.0,89675.0,0.23417896]
[1765557592798,0.011151,89678.0,89675.0,0.01115137]
[1765557593047,0.23417896,89675.0,89666.0,0.01115249]
[1765557593175,0.04317043,89673.0,89666.0,0.01115249]
[1765557593371,0.04317043,89673.0,89670.0,0.22303848]
[1765557593576,0.05432168,89676.0,89672.0,0.01126837]
[1765557593785,0.04317043,89676.0,89674.0,0.22303008]
[1765557594005,0.27733156,89682.0,89678.0,0.011151]
[1765557594204,0.01115088,89679.0,89672.0,0.00011662]
[1765557594422,0.2230225,89678.0,89672.0,0.01126837]
[1765557594626,0.011151,89678.0,89674.0,0.0111515]
[1765557594835,0.01115088,89679.0,89676.0,0.01115125]
[1765557595425,0.01215088,89679.0,89676.0,0.01115125]
[1765557595664,0.0111505,89682.0,89678.0,0.011151]
[1765557595821,0.01114951,89690.0,89684.0,0.01115026]
[1765557595999,0.01114951,89690.0,89683.0,0.01115038]
[1765557596000,0.01114976,89688.0,89683.0,0.01115038]
[1765557596189,0.04317043,89699.0,89691.0,0.01114939]
[1765557596391,0.05431808,89705.0,89701.0,0.01114814]
[1765557596663,0.05431808,89705.0,89696.0,0.01114876]
[1765557596664,0.01114802,89702.0,89698.0,0.22297039]
[1765557596873,0.04317043,89709.0,89706.0,0.01114752]
[1765557597070,0.0111469,89711.0,89707.0,0.0111474]
[1765557597493,0.01114715,89709.0,89705.0,0.01114765]
[1765557597644,0.01114702,89710.0,89706.0,0.01114752]
[1765557597847,0.23408192,89713.0,89709.0,0.01114715]
[1765557598048,0.04317043,89707.0,89704.0,0.01114777]
[1765557598227,0.04317043,89707.0,89704.0,0.23410283]
[1765557598430,0.04317043,89707.0,89701.0,0.01114814]
[1765557598431,0.01114765,89705.0,89701.0,0.01114814]
[1765557598619,0.05431783,89707.0,89703.0,0.22295774]
[1765557598819,0.05431783,89707.0,89702.0,0.01114802]
[1765557599028,0.04317043,89707.0,89704.0,0.01114777]
[1765557599703,0.04317043,89707.0,89705.0,0.22295301]
[1765557600120,0.00038866,89713.0,89711.0,0.2229381]
[1765557600360,0.00038866,89713.0,89712.0,0.02837]
[1765557600777,0.00038866,89713.0,89712.0,0.0715]
[1765557601188,0.00038866,89713.0,89711.0,0.2229381]
[1765557601389,0.01115013,89685.0,89675.0,0.01115137]
[1765557601591,0.00161,89685.0,89680.0,0.23416546]
[1765557601846,0.00161,89685.0,89650.0,0.87656346]
[1765557602164,0.01115125,89676.0,89666.0,0.01115249]
[1765557602403,0.011151,89678.0,89659.0,0.06543673]
[1765557602404,0.01115137,89675.0,89671.0,0.01115187]
[1765557602589,0.04478043,89683.0,89679.0,0.01115088]
[1765557602813,0.011151,89678.0,89674.0,0.0111515]
[1765557602964,0.011151,89678.0,89672.0,0.01115175]
[1765557603165,0.01115075,89680.0,89676.0,0.01115125]
[1765557603467,0.01115075,89680.0,89671.0,0.02095662]
[1765557603468,1.0,89672.0,89671.0,0.00011662]
[1765557603667,0.0111505,89682.0,89675.0,0.01115137]
[1765557603846,0.01115125,89676.0,89673.0,0.01115162]
[1765557604054,0.01115113,89677.0,89673.0,0.01115162]
[1765557604055,0.04317043,89677.0,89676.0,0.22302511]
[1765557604257,0.00161,89678.0,89676.0,0.22302511]
[1765557604456,0.01115026,89684.0,89679.0,0.01115088]
[1765557604777,0.05432131,89679.0,89675.0,0.01115137]
[1765557604954,0.0111505,89682.0,89678.0,0.011151]
[1765557605160,0.0111505,89682.0,89671.0,0.00011662]
[1765557605161,0.22303453,89673.0,89671.0,0.00011662]
[1765557605345,0.16117043,89672.0,89671.0,0.00011662]
[1765557606155,1.40270043,89672.0,89671.0,0.00011662]
[1765557606372,0.01115548,89642.0,89633.0,0.23714114]
[1765557606567,0.04317043,89635.0,89633.0,0.23725704]
[1765557606763,0.04317043,89635.0,89633.0,0.22324704]
[1765557608453,0.05432616,89640.0,89636.0,0.01115623]
[1765557608653,0.04317043,89637.0,89636.0,0.01115623]
[1765557608816,0.03093511,89645.0,89639.0,0.01115585]
[1765557608987,0.01115486,89647.0,89642.0,0.01115548]
[1765557609184,0.3551,89647.0,89644.0,0.01115523]
[1765557609475,0.3672,89647.0,89640.0,0.01115573]
[1765557609646,0.04317043,89643.0,89642.0,0.01115548]
[1765557610209,0.04317043,89649.0,89644.0,0.01115523]
[1765557610423,0.02907424,89652.0,89644.0,0.01115523]
[1765557610424,0.01792,89652.0,89649.0,0.23424622]
[1765557610850,0.1904,89658.0,89656.0,0.01115374]
[1765557611022,0.011152,89670.0,89666.0,0.01115249]
[1765557611390,0.011152,89670.0,89647.0,0.22309667]
[1765557611391,0.22307974,89655.0,89647.0,0.22309667]
[1765557611520,0.22307974,89655.0,89635.0,0.04313]
[1765557611521,0.05432392,89658.0,89655.0,0.01115386]
[1765557611719,0.01943,89667.0,89662.0,0.01115299]
[1765557611971,0.01115262,89665.0,89661.0,0.01115312]
[1765557612124,0.03047187,89671.0,89668.0,0.22304407]
[1765557612125,0.04317043,89671.0,89668.0,0.22304407]
[1765557612325,0.01115063,89681.0,89662.0,0.01115299]
[1765557612326,0.2015,89681.0,89679.0,0.01115088]
[1765557612644,0.1005,89680.0,89677.0,0.23417375]
[1765557612852,0.00011656,89681.0,89679.0,0.22301765]
[1765557613050,0.00011656,89681.0,89678.0,0.011151]
[1765557613253,0.22301737,89680.0,89674.0,0.0111515]
[1765557613554,0.01115125,89676.0,89670.0,0.011152]
[1765557613878,0.22303754,89671.0,89659.0,0.01115336]
[1765557614033,0.27736475,89670.0,89664.0,0.23420709]
[1765557614239,0.04317043,89670.0,89667.0,0.01115237]
[1765557614445,0.01115125,89676.0,89667.0,0.01115237]
[1765557614446,0.001,89680.0,89677.0,0.01115113]
[1765557614670,0.01115075,89680.0,89677.0,0.01115113]
[1765557614968,0.04317043,89679.0,89676.0,0.01115125]
[1765557615280,0.05432131,89679.0,89676.0,0.01115125]
[1765557615485,0.00161,89680.0,89677.0,0.23417375]
[1765557615716,0.00011656,89681.0,89677.0,0.23417375]
[1765557615717,0.00011656,89681.0,89680.0,0.22301516]
[1765557616122,0.00011656,89681.0,89680.0,0.29451516]
[1765557618323,0.00111656,89681.0,89675.0,0.01115137]
[1765557618670,0.00111656,89681.0,89668.0,0.01691741]
[1765557618671,0.01115125,89676.0,89668.0,0.01691741]
[1765557618877,0.01115187,89671.0,89666.0,0.0124572]
[1765557619089,0.01115212,89669.0,89662.0,0.03867]
[1765557619513,0.22305496,89664.0,89662.0,0.03867]
[1765557619736,0.01115237,89667.0,89663.0,0.02709]
[1765557619956,0.01115249,89666.0,89663.0,0.02709]
[1765557620197,0.23419261,89670.0,89663.0,0.02709]
[1765557620198,0.22303332,89673.0,89667.0,0.01115237]
[1765557620419,0.01115187,89671.0,89666.0,0.03802249]
[1765557620650,0.22304749,89667.0,89666.0,0.02687]
[1765557620861,0.22304501,89668.0,89667.0,0.03814]
[1765557621061,0.01115187,89671.0,89667.0,0.03814]
[1765557621268,0.01115212,89669.0,89663.0,0.01115287]
[1765557621489,0.011152,89670.0,89667.0,0.01115237]
[1765557621665,0.01115225,89668.0,89664.0,0.22305496]
[1765557621915,0.01115187,89671.0,89668.0,0.01115225]
[1765557622125,0.01115187,89671.0,89662.0,0.03814]
[1765557622126,0.0111505,89682.0,89677.0,0.01115113]
[1765557622331,0.0111505,89682.0,89673.0,0.01115162]
[1765557622332,0.011151,89678.0,89673.0,0.01115162]
[1765557622546,0.01115125,89676.0,89673.0,0.01115162]
[1765557622800,0.01115137,89675.0,89671.0,0.01115187]
[1765557623002,0.01115125,89676.0,89672.0,0.22303506]
[1765557623221,0.01115125,89676.0,89672.0,0.03814]
[1765557623434,0.01115125,89676.0,89673.0,0.03814]
[1765557623651,0.01115125,89676.0,89675.0,0.02687]
[1765557624298,0.22301628,89680.0,89675.0,0.02687]
[1765557624299,0.00111656,89681.0,89678.0,0.011151]
[1765557624528,0.00011656,89681.0,89680.0,0.02687]
[1765557624735,0.00011656,89681.0,89680.0,0.24988516]
[1765557624940,0.00011656,89681.0,89680.0,0.28802516]
[1765557625414,0.00011656,89681.0,89660.0,0.00099999]
[1765557625415,0.01115162,89673.0,89660.0,0.00099999]
[1765557625617,0.00011656,89681.0,89674.0,0.0111515]
[1765557625825,0.00011656,89681.0,89676.0,0.01115125]
[1765557625826,0.01126719,89681.0,89676.0,0.01115125]
[1765557626037,0.00011656,89681.0,89680.0,0.24988516]
[1765557626248,0.00011656,89681.0,89680.0,0.28649358]
[1765557626454,0.00011656,89681.0,89680.0,0.32463358]
[1765557626874,0.00011656,89681.0,89680.0,0.28802516]
[1765557627479,0.00011656,89681.0,89680.0,0.29002516]
[1765557627893,0.00011656,89681.0,89680.0,0.002]
[1765557628110,0.00011656,89681.0,89680.0,0.003]
[1765557628111,0.00172656,89681.0,89680.0,0.003]
[1765557628517,0.07757832,89681.0,89680.0,0.002]
[1765557628734,0.04317043,89672.0,89670.0,0.011152]
[1765557628945,0.01115162,89673.0,89666.0,0.01115249]
[1765557629188,0.01115212,89669.0,89665.0,0.01115262]
[1765557629392,0.01115175,89672.0,89668.0,0.01115225]
[1765557629605,0.011152,89670.0,89664.0,0.01115274]
[1765557629851,0.01115212,89669.0,89664.0,0.01115274]
[1765557630100,0.01115225,89668.0,89664.0,0.01115274]
[1765557630333,0.23420012,89667.0,89665.0,0.002]
[1765557630568,0.22303897,89671.0,89665.0,0.22305209]
[1765557630778,0.23418419,89673.0,89667.0,0.01115237]
[1765557630989,0.01115225,89668.0,89665.0,0.01115262]
[1765557631196,0.01115249,89666.0,89661.0,0.23421305]
[1765557631398,0.01115249,89666.0,89663.0,0.01115287]
[1765557631599,0.01115249,89666.0,89662.0,0.03814]
[1765557631600,0.01115262,89665.0,89662.0,0.03814]
[1765557631777,0.01115249,89666.0,89664.0,0.002]
[1765557632222,0.01115237,89667.0,89665.0,0.03814]
[1765557632593,0.23420114,89667.0,89665.0,0.03814]
[1765557632794,0.23420867,89664.0,89660.0,0.01115324]
[1765557632999,0.22309974,89646.0,89645.0,0.02009]
[1765557633428,0.22309974,89646.0,89629.0,0.03814]
[1765557633429,0.0111556,89641.0,89630.0,0.01115697]
[1765557633781,0.01115598,89638.0,89634.0,0.01115648]
[1765557633949,0.0111556,89641.0,89635.0,0.23428347]
[1765557634160,0.22312463,89636.0,89635.0,0.00011667]
[1765557634457,0.01115585,89639.0,89636.0,0.01115623]
[1765557634877,0.01115585,89639.0,89635.0,0.00011667]
[1765557634878,0.01115598,89638.0,89635.0,0.00011667]
[1765557635095,0.23427618,89638.0,89635.0,0.00011667]
[1765557635800,0.04317043,89636.0,89635.0,0.00011667]
[1765557637235,0.23588618,89638.0,89635.0,0.00011667]
[1765557637489,0.04317043,89636.0,89635.0,0.00011667]
[1765557638092,0.23588618,89638.0,89635.0,0.00011667]
[1765557639278,0.3473938,89638.0,89635.0,0.00011667]
[1765557639527,1.07045043,89636.0,89635.0,0.00011667]
[1765557639861,1.36115043,89636.0,89635.0,0.00011667]
[1765557640059,1.40103043,89636.0,89635.0,0.00011667]
[1765557640430,0.00261,89638.0,89635.0,0.01127302]
[1765557640644,0.00261,89638.0,89635.0,0.00011667]
[1765557640841,0.002,89638.0,89635.0,0.23439948]
[1765557641061,0.002,89638.0,89635.0,0.2343998]
[1765557641341,0.002,89638.0,89637.0,0.02687]
[1765557641538,0.001,89638.0,89637.0,0.02687]
[1765557641765,0.001,89638.0,89637.0,0.04084]
[1765557641921,0.001,89638.0,89637.0,0.07898]
[1765557642340,0.001,89638.0,89637.0,0.01397]
[1765557642701,0.001,89638.0,89637.0,0.05211]
[1765557642910,0.001,89638.0,89637.0,0.07898]
[1765557643069,0.01115498,89646.0,89642.0,0.01115548]
[1765557643266,0.01115511,89645.0,89642.0,0.01115548]
[1765557643468,0.01115511,89645.0,89641.0,0.0111556]
[1765557644759,0.001,89645.0,89642.0,0.01115548]
[1765557644963,0.003,89645.0,89642.0,0.23426461]
[1765557645363,0.01415511,89645.0,89640.0,0.01115573]
[1765557645590,0.002,89645.0,89642.0,0.23426518]
[1765557645788,0.002,89645.0,89642.0,0.01115548]
[1765557645990,0.002,89645.0,89643.0,0.22310721]
[1765557646213,0.01115336,89659.0,89654.0,0.01115399]
[1765557646410,0.01115336,89659.0,89632.0,0.22313459]
[1765557646411,0.00161,89659.0,89632.0,0.22313459]
[1765557646614,0.00172654,89659.0,89658.0,0.23422337]
[1765557646817,0.00172654,89659.0,89658.0,0.24531337]
[1765557647017,0.00172654,89659.0,89643.0,0.01109]
[1765557647018,0.01115511,89645.0,89643.0,0.01109]
[1765557647214,0.04317043,89644.0,89637.0,0.01109]
[1765557647415,0.01115573,89640.0,89637.0,0.01109]
[1765557647878,0.0111556,89641.0,89637.0,0.0222461]
[1765557648322,0.01115548,89642.0,89637.0,0.0222461]
[1765557648559,0.27743103,89644.0,89638.0,0.01115598]
[1765557648767,0.22311017,89642.0,89637.0,0.01209]
[1765557648977,0.01115573,89640.0,89637.0,0.01109]
[1765557649186,0.2342606,89644.0,89637.0,0.0222461]
[1765557649408,0.00161,89645.0,89642.0,0.01115548]
[1765557649629,0.01115361,89657.0,89652.0,0.01115424]
[1765557649853,0.01115374,89656.0,89651.0,0.01115436]
[1765557650082,0.01115361,89657.0,89651.0,0.01115436]
[1765557650290,0.01115361,89657.0,89637.0,0.0222461]
[1765557650291,0.22309725,89647.0,89637.0,0.0222461]
[1765557650504,0.2342887,89633.0,89632.0,0.01057]
[1765557650727,0.04317043,89643.0,89637.0,0.0111561]
[1765557650934,0.01115498,89646.0,89640.0,0.23426976]
[1765557651144,0.01115635,89635.0,89626.0,0.22314881]
[1765557651353,0.00099999,89640.0,89637.0,0.0111561]
[1765557651561,1.0,89653.0,89649.0,0.01115461]
[1765557651770,0.01115473,89648.0,89642.0,0.01115548]
[1765557651986,0.00199998,89650.0,89643.0,0.01115536]
[1765557652188,0.01315446,89650.0,89645.0,0.01115511]
[1765557652397,0.01315446,89650.0,89637.0,0.0111561]
[1765557652398,0.01115511,89645.0,89637.0,0.0111561]
[1765557652596,0.01115523,89644.0,89639.0,0.01115585]
[1765557652893,0.01115536,89643.0,89639.0,0.01115585]
[1765557653096,0.01115536,89643.0,89638.0,0.01115598]
[1765557653306,0.80741048,89650.0,89638.0,0.01115598]
[1765557653307,0.05432541,89646.0,89639.0,0.22311716]
[1765557653448,0.01115511,89645.0,89640.0,0.01115573]
[1765557653861,0.01115511,89645.0,89641.0,0.0111556]
[1765557654051,0.23425509,89646.0,89640.0,0.01115573]
[1765557654407,0.01115511,89645.0,89640.0,0.01115573]
[1765557654557,0.01115523,89644.0,89640.0,0.01115573]
[1765557654758,0.01115511,89645.0,89640.0,0.01115573]
[1765557655013,0.01115573,89640.0,89635.0,0.01115635]
[1765557655219,0.01115573,89640.0,89630.0,0.22313757]
[1765557655220,0.01115623,89636.0,89632.0,0.01115672]
[1765557655410,0.01115623,89636.0,89627.0,0.01057]
[1765557655411,0.01115672,89632.0,89627.0,0.02172735]
[1765557655569,0.01115635,89635.0,89631.0,0.01115685]
[1765557655772,0.01115585,89639.0,89634.0,0.01115648]
[1765557655976,0.01315571,89640.0,89636.0,0.01115623]
[1765557656178,0.01115585,89639.0,89633.0,0.0111566]
[1765557656603,0.01115623,89636.0,89632.0,0.001]
[1765557656822,1.2613021,89633.0,89632.0,0.001]
[1765557657023,1.3156621,89633.0,89632.0,0.001]
[1765557657217,1.35883253,89633.0,89632.0,0.001]
[1765557657458,1.64953253,89633.0,89632.0,0.001]
[1765557657776,0.04317043,89609.0,89608.0,0.01115971]
[1765557657926,0.01115921,89612.0,89608.0,0.01115971]
[1765557658137,0.04317043,89613.0,89608.0,0.01115971]
[1765557658481,0.00099999,89620.0,89618.0,0.01115847]
[1765557658639,0.0111576,89625.0,89619.0,0.02838775]
[1765557658640,0.01115785,89623.0,89619.0,0.02838775]
[1765557658833,0.01115735,89627.0,89623.0,0.01115785]
[1765557659039,0.0111571,89629.0,89623.0,0.01115785]
[1765557659249,0.01115685,89631.0,89627.0,0.01115735]
[1765557659447,0.003,89633.0,89631.0,0.22313708]
[1765557659837,0.03775523,89644.0,89629.0,0.23429892]
[1765557659838,0.01215447,89650.0,89642.0,0.22310827]
[1765557660063,0.00011649,89650.0,89647.0,0.23425108]
[1765557660295,0.00011649,89650.0,89649.0,0.26090228]
[1765557660719,0.00011649,89650.0,89649.0,0.33321028]
[1765557660969,0.00011649,89650.0,89649.0,0.26090228]
[1765557661436,0.00011649,89650.0,89649.0,0.28985228]
[1765557661645,0.01114951,89690.0,89679.0,0.22301765]
[1765557661646,0.01114988,89687.0,89679.0,0.22301765]
[1765557661856,0.01114988,89687.0,89668.0,0.01115225]
[1765557661857,0.02373061,89696.0,89693.0,0.01114914]
[1765557662068,0.00011667,89696.0,89694.0,0.01114901]
[1765557662276,0.00011667,89696.0,89695.0,0.25159786]
[1765557662495,0.01287543,89696.0,89690.0,0.01114951]
[1765557662703,0.00172667,89696.0,89693.0,0.23413198]
[1765557662921,0.00172667,89696.0,89693.0,0.28516482]
[1765557663138,0.00111667,89696.0,89693.0,0.23413198]
[1765557663357,0.00111667,89696.0,89695.0,0.02845]
[1765557663982,0.00111667,89696.0,89695.0,0.0569]
[1765557663983,0.00211667,89696.0,89695.0,0.0569]
[1765557664197,0.01114442,89731.0,89727.0,0.01114491]
[1765557664409,0.00139999,89740.0,89739.0,0.00853]
[1765557664636,0.0007889,89740.0,89739.0,0.23139854]